Cogmind - Beta 15 @@@ ROGUE MODE // 2025.08.12 @ 15:58:55 Player: IAMTRASHMAN Result: Self-destructed Performance ------------- Evolutions (3) 1500 Regions Visited (8) 1600 Robots Destroyed (157) 785 Value Destroyed (6077) 6077 Prototype IDs (2) 40 Alien Tech Used (0) 0 Bonus (1090) 1090 TOTAL SCORE: 11092 Bonus ------- High Alert Combat Kills 517 Follower Combat Kills 173 Entered Garrisons 400 Cogmind --------- Core Integrity 700/700 Matter 239/300 Energy 157/265 System Corruption 0% Temperature Cool (0) Movement Treading (161) Location -7/Factory Parts ------- > --- POWER (1) -------- Improved Ion Engine > --- PROPULSION (6) --- Light Treads Light Treads Light Treads Armored Treads Improved Medium Treads Improved Medium Treads > --- UTILITY (4) ------ Huge Storage Unit Advanced Targeting Computer Hardened Medium Armor Plating Hardlight Generator > --- WEAPON (2) ------- Advanced Assault Cannon Heavy Missile Launcher > --- INVENTORY (25) --- Reinforced Deuterium Engine Improved Cooling System Coolant Injector Large Matter Pod (150) Improved Signal Interpreter Seismic Detector Advanced Targeting Computer Launcher Loader Launcher Loader Hardened Light Armor Plating Hardened Medium Armor Plating Hardened Medium Armor Plating Hardened Medium Armor Plating Layered Medium Armor Plating Hacking Suite Authchip [R/Combat] Dynamic Insulation System High-powered Tractor Beam Advanced Assault Cannon Advanced Assault Cannon Advanced Assault Cannon Heavy Missile Launcher Heavy Missile Launcher Peak State ------------ > --- POWER ------------ Light Nuclear Core > --- PROPULSION ------- Light Treads Armored Treads Armored Treads Improved Medium Treads Improved Medium Treads Improved Medium Treads > --- UTILITY ---------- Huge Storage Unit Advanced Melee Analysis Suite > --- WEAPON ----------- Heavy Missile Launcher Axe > --- INVENTORY -------- Improved Ion Engine Reinforced Deuterium Engine Armored Treads Improved Cooling System Coolant Injector Large Matter Pod Large Matter Pod Seismic Detector Advanced Targeting Computer Launcher Loader Launcher Loader Hardened Medium Armor Plating Hardened Medium Armor Plating Hardened Medium Armor Plating Layered Medium Armor Plating Hardlight Generator Shield Generator Hacking Suite Dynamic Insulation System High-powered Tractor Beam Heavy Missile Launcher Heavy Missile Launcher Heavy Missile Launcher [Rating: 46] Favorites ----------- Power Improved Ion Engine Engine Improved Ion Engine Power Core Light Nuclear Core Propulsion Light Treads Treads Light Treads Leg Aluminum Leg Utility Huge Storage Unit Device Shield Generator Storage Huge Storage Unit Processor Advanced Melee Analysis Suite Protection Hardened Medium Armor Plating Weapon Flak Cannon Energy Gun EM Pulse Gun Ballistic Gun Autogun Ballistic Cannon Flak Cannon Launcher Heavy Missile Launcher Slashing Weapon Axe Build | -11 -10 -10 -9 -8 -8 -8 -8 -7 ------- Run | Yrd Mat Min Mat Mat Gar Mat Gar Fac Slots Evolved 6 | . . . 2 2 . . . 2 Power . | . . . . . . . . . Propulsion 4 | . . . 2 2 . . . . Utility 2 | . . . . . . . . 2 Weapon . | . . . . . . . . . Parts Attached 101 | 8 1 1 19 25 25 11 9 2 Power 8 | 1 . . 3 2 1 1 . . Engine 7 | 1 . . 3 2 . 1 . . Core 1 | . . . . . 1 . . . Reactor . | . . . . . . . . . Propulsion 47 | 2 . 1 8 15 13 4 4 . Treads 36 | . . . 3 12 13 4 4 . Leg 11 | 2 . 1 5 3 . . . . Wheel . | . . . . . . . . . Hover . | . . . . . . . . . Flight . | . . . . . . . . . Utility 20 | 3 1 . 3 3 7 1 1 1 Device 7 | 2 . . . 1 3 1 . . Storage 4 | 1 1 . 1 1 . . . . Processor 2 | . . . . . 1 . . 1 Hackware . | . . . . . . . . . Protection 7 | . . . 2 1 3 . 1 . Artifact . | . . . . . . . . . Weapon 26 | 2 . . 5 5 4 5 4 1 Energy Gun 2 | 2 . . . . . . . . Energy Cannon . | . . . . . . . . . Ballistic Gun 11 | . . . 4 3 2 2 . . Ballistic Cannon 6 | . . . . 1 1 2 2 . Launcher 6 | . . . 1 . 1 1 2 1 Special Weapon . | . . . . . . . . . Impact Weapon . | . . . . . . . . . Slashing Weapon 1 | . . . . 1 . . . . Piercing Weapon . | . . . . . . . . . Special Melee Weapon . | . . . . . . . . . Unidentified Prototypes 2 | . . . . 1 . 1 . . Parts Lost 28 | . . . 3 1 21 . 3 . Power 2 | . . . 1 . 1 . . . Propulsion 16 | . . . 1 1 12 . 2 . Utility 5 | . . . 1 . 3 . 1 . Weapon 5 | . . . . . 5 . . . Highest Loss Streak 11 | . . . 1 1 11 . 2 . To Critical Strikes 1 | . . . . . . . 1 . Average Backups 20 | 3 9 10 11 22 23 22 22 22 Power 1 | . 1 1 . 1 2 1 1 1 Propulsion 1 | 1 2 2 1 1 1 . . . Utility 12 | . 3 5 7 11 13 16 15 16 Weapon 5 | 1 2 2 1 7 6 4 5 5 Tool/Special . | . . . . . . . . . Unused Backups 47 | . 1 . 6 20 1 2 . 17 Power 5 | . . . 1 2 1 . . 1 Propulsion . | . . . . . . . . . Utility 27 | . . . 2 8 . 1 . 16 Weapon 12 | . . . 2 9 . 1 . . Tool/Special 3 | . 1 . 1 1 . . . . Average Slot Usage (%) 97 | . 100 100 96 99 92 100 97 99 Engine 8 | . 14 14 9 9 6 5 9 7 Treads 40 | . . . 8 47 48 54 51 46 Leg 8 | . 28 28 34 6 . . . . Device 4 | . 14 14 4 4 4 4 2 7 Storage 9 | . 14 14 11 9 9 9 9 7 Protection 4 | . . . 6 4 3 . 6 7 Energy Gun 1 | . 28 28 1 . . . . . Ballistic Gun 7 | . . . 20 9 1 5 . . Ballistic Cannon 7 | . . . . 7 7 2 16 14 Slashing Weapon 1 | . . . . . 5 5 . . Peak Build Rating 46 | 9 8 8 17 24 44 46 44 45 Average Rating 25 | 5 7 8 11 21 27 42 41 42 On Entrance 21 | . 7 8 8 17 24 44 44 39 Naked Turns . | . . . . . . . . . Heaviest Build 113 | 15 20 20 58 103 109 101 108 113 Greatest Support 150 | 20 20 20 43 120 150 150 150 140 Greatest Overweight (x) 4 | . . . 1 1 4 . 1 . Average Overweight (x) . | . . . . . . . . . Largest Inventory Capacity 25 | 8 10 10 20 25 25 25 25 25 Average Capacity 21 | 7 9 10 13 23 25 25 25 25 Most Carried 25 | 7 10 10 20 25 25 25 25 25 Average Carried 20 | 4 9 10 11 22 23 24 24 23 Final Capacity 25 | 8 10 10 20 25 25 25 25 25 Final Carried 25 | 7 10 10 20 25 24 25 25 25 Class Distribution -------------------- 61% | Scavenger-Mutant 37% | Mutant Dominant Class ---------------- Mutant | -10/Materials Mutant | -10/Mines Mutant | -9/Materials Scavenger-Mutant | -8/Materials Scavenger-Mutant | -8/Garrison Mutant | -8/Materials Mutant | -8/Garrison Scavenger-Mutant | -7/Factory Resources | -11 -10 -10 -9 -8 -8 -8 -8 -7 ----------- Run | Yrd Mat Min Mat Mat Gar Mat Gar Fac Matter Collected 4558 | 275 . 84 948 1023 1018 395 796 19 Remotely . | . . . . . . . . . Salvage Created 4914 | 140 . 228 1288 1178 802 493 670 115 Parts 310 | 11 . 16 89 72 45 29 38 10 Haulers Intercepted 10 | . . . 2 6 . 2 . . Recyclers Shooed 11 | 1 . 1 7 2 . . . . Parts Field Recycled . | . . . . . . . . . Retrieved Matter . | . . . . . . . . . Parts Self-Destructed . | . . . . . . . . . Prevented . | . . . . . . . . . Kills | -11 -10 -10 -9 -8 -8 -8 -8 -7 ------- Run | Yrd Mat Min Mat Mat Gar Mat Gar Fac Combat Hostiles Destroyed 117 | . . 4 25 22 23 7 33 3 Melee 8 | . . . . 1 3 2 2 . Guns 48 | . . 4 20 9 11 4 . . Cannons 33 | . . . . 8 9 . 16 . AOE 28 | . . . 5 4 . 1 15 3 Classes Destroyed 15 | 2 . 2 7 . 3 . 1 . Worker 4 | . . . 2 1 . 1 . . Builder 4 | . . 1 2 1 . . . . Tunneler 3 | 3 . . . . . . . . Hauler 10 | . . . 2 6 . 2 . . Recycler 9 | 1 . . 5 3 . . . . Operator 3 | . . . 1 2 . . . . Watcher 7 | . . . 3 1 . 2 . 1 Swarmer 37 | . . . 14 8 3 . 12 . Grunt 42 | . . 4 5 8 9 4 9 3 Brawler 6 | . . . 1 . 2 . 3 . Duelist 2 | . . . . . 1 . 1 . Sentry 22 | . . . 5 6 4 3 4 . Hunter 4 | . . . . . 2 . 2 . Programmer 2 | . . . . . . . 2 . Behemoth 2 | . . . . . 2 . . . Best Kill Streak 10 | 2 . 2 9 6 5 5 10 3 Combat Bots Only 10 | . . 2 7 4 5 3 10 3 Max Kills in Single Turn 6 | 1 . 1 6 3 2 1 4 3 Gunslinging 1 | . . . 1 . . . . . Exploded 5 | . . . 5 2 . 1 4 3 Melee 1 | . . . . 1 1 1 1 . Uniques/NPCs Destroyed . | . . . . . . . . . Combat | -11 -10 -10 -9 -8 -8 -8 -8 -7 -------- Run | Yrd Mat Min Mat Mat Gar Mat Gar Fac Hostile Shots Fired 648 | . 1 13 130 94 248 47 108 7 Missed 177 | . . 3 30 26 63 16 36 3 Hits 471 | . 1 10 100 68 185 31 72 4 Melee 3 | . . . . . 1 . 2 . Projectile 468 | . 1 10 100 68 184 31 70 4 Critical Strikes 15 | . . 1 1 3 3 3 4 . Damage Taken 6733 | . 11 143 1062 836 3254 380 976 71 Core 564 | . . 27 91 79 275 31 61 . Absorbed by Shields 901 | . . . . 69 608 89 131 4 Ignored by Resistances 104 | . . . . . 104 . . . Regen/Repaired (Parts) 176 | . . . 84 92 . . . . Core Remaining (%) 71 | 100 . 89 77 . . . 18 . Volleys Fired 378 | 13 1 10 102 80 72 30 67 3 Largest 2 | 2 2 2 2 2 2 2 2 2 Hottest 80 | 80 80 80 80 60 74 46 80 80 Shots Fired 704 | 26 2 19 203 152 133 56 109 4 Gun 470 | 26 2 19 202 99 68 54 . . Cannon 219 | . . . . 51 64 . 102 2 Launcher 15 | . . . 1 2 1 2 7 2 Special . | . . . . . . . . . Kinetic 632 | . . . 192 150 132 54 102 2 Thermal . | . . . . . . . . . Explosive 15 | . . . 1 2 1 2 7 2 Electromagnetic 57 | 26 2 19 10 . . . . . Robot Hit Streak 16 | 5 . 5 14 16 13 10 10 6 Robot Miss Streak 10 | 5 2 1 5 10 8 3 2 1 Penetration Max . | . . . . . . . . . Secondary Targets 2 | . . . 1 . 1 . . . Max Gunslinging Chain 1 | . . . 1 . 1 . . . Shots Hit Robots 483 | 12 . 14 123 106 123 47 56 2 Core Hits 318 | 4 . 8 64 84 89 20 42 7 Critical Kills 3 | . . . 1 1 1 . . . Critical Parts Destroyed 2 | . . . 1 1 . . . . Critical Strikes 10 | . . . 2 2 4 . 2 . Destroy 5 | . . . 2 2 1 . . . Blast 2 | . . . . . . . 2 . Sever 3 | . . . . . 3 . . . Melee Attacks 41 | . . . . 8 27 6 . . Impact . | . . . . . . . . . Slashing 41 | . . . . 8 27 6 . . Piercing . | . . . . . . . . . Sneak Attacks 2 | . . . . . 1 1 . . Combat Hostiles . | . . . . . . . . . Follow-up Attacks . | . . . . . . . . . Damage Inflicted 11719 | 183 12 237 1885 2263 2556 1049 3209 325 Guns 4600 | 178 12 184 1664 992 961 609 . . Cannons 3479 | . . . . 796 1139 . 1521 23 Explosions 2764 | . . 41 217 356 . 226 1622 302 Melee 709 | . . . . 39 456 214 . . Ramming 167 | 5 . 12 4 80 . . 66 . Kinetic 7624 | . . . 1583 1788 2100 609 1521 23 Thermal 41 | . . 41 . . . . . . Explosive 2723 | . . . 217 356 . 226 1622 302 Electromagnetic 455 | 178 12 184 81 . . . . . Impact . | . . . . . . . . . Slashing 709 | . . . . 39 456 214 . . Piercing . | . . . . . . . . . Highest Corruption 6 | . 5 6 . . . . 1 . Average Corruption 1 | . 4 5 . . . . 1 . Corruption Purged . | . . . . . . . . . Corruption Blocked . | . . . . . . . . . Effects 18 | . . 6 . . . . 12 . Message Errors 3 | . . 2 . . . . 1 . Matter Fused 3 | . . 2 . . . . 1 . Heat Flow Errors 3 | . . 1 . . . . 2 . Energy Discharges 1 | . . . . . . . 1 . Data Loss (minor) 4 | . . . . . . . 4 . Data Loss (major) 1 | . . . . . . . 1 . Alerts 1 | . . . . . . . 1 . Weapon Failures 2 | . . 1 . . . . 1 . Overload Shots . | . . . . . . . . . Overflow Damage 256 | . . . 25 19 34 34 144 . Projectiles 23 | . . . . 3 . . 20 . Explosions 153 | . . . 25 4 . . 124 . Melee 80 | . . . . 12 34 34 . . Knockbacks 42 | . . . . 20 19 . 3 . Impact . | . . . . . . . . . Kinetic 38 | . . . . 19 16 . 3 . Secondary 4 | . . . . 1 3 . . . Self-Inflicted Damage 66 | . . . . . . . 66 . Shots 3 | . . . . . . . 3 . Rammed 12 | . . . . 7 . . 5 . Targets Rammed 21 | 2 . 5 1 7 . . 6 . Kicked 8 | 2 . 5 1 . . . . . Crushed 1 | . . . . . . . 1 . Highest Temperature 276 | 90 24 207 36 132 234 17 276 9 Average Temperature 42 | 41 14 65 7 31 43 6 71 6 Received Heat Transfer 2030 | . 6 99 237 321 911 203 219 34 Effects 1 | . . . . . . . 1 . Energy Bleed 1 | . . . . . . . 1 . Siege Activations . | . . . . . . . . . Martial Activations . | . . . . . . . . . Shielding Activations . | . . . . . . . . . Robots Disrupted . | . . . . . . . . . Combat Hostiles . | . . . . . . . . . Robots Corrupted . | . . . . . . . . . Combat Hostiles . | . . . . . . . . . Parts Fried 3 | 2 . . 1 . . . . . Impact Corruptions 1 | . . . . 1 . . . . Robots Melted . | . . . . . . . . . Combat Hostiles . | . . . . . . . . . Parts Melted . | . . . . . . . . . Heat Transferred 50 | . . 50 . . . . . . Parts Sabotaged . | . . . . . . . . . Parts Stolen . | . . . . . . . . . Parts Stripped . | . . . . . . . . . Power Chain Reactions 1 | . . 1 . . . . . . Alert | -11 -10 -10 -9 -8 -8 -8 -8 -7 ------- Run | Yrd Mat Min Mat Mat Gar Mat Gar Fac Maximum Alert Level 4 | . . . 1 . 3 1 4 3 Low Security (%) 54 | 100 100 100 81 100 13 . . . Level 1 16 | . . . 18 . 27 100 6 . Level 2 14 | . . . . . 53 . 30 24 Level 3 5 | . . . . . 5 . 17 75 Level 4 8 | . . . . . . . 45 . Level 5 . | . . . . . . . . . High Security . | . . . . . . . . . Max Security . | . . . . . . . . . Peak Influence 1445 | 5 13 55 368 131 723 366 1445 845 Initial 758 | . . . 13 21 85 352 182 758 Average 323 | 1 1 26 139 45 468 309 919 729 Influence Increases 4432 | 20 13 115 847 764 848 295 1333 197 Destroy 0b10 Robot/C 2440 | . . 80 500 440 460 160 720 80 Destroy 0b10 Robot/NC 205 | 20 . 5 75 70 5 25 . 5 Destroy Leader 424 | . . 20 130 134 10 58 50 22 Allied During Kill 25 | . . . . . . 4 13 8 Successful Hack 158 | . 13 . 38 73 . 20 14 . Disable Machine 150 | . . . 15 15 30 . 30 60 Anti-Garrison Action 600 | . . . . . 250 . 350 . Destroy Structure 295 | . . 10 14 32 63 28 126 22 Partial Spotted 15 | . . . 15 . . . . . Lose Combat Pursuer 120 | . . . 60 . 30 . 30 . Influence Decreases 3617 | 20 13 80 830 685 256 737 169 827 Entered New Map 1256 | . . . 22 31 46 371 99 687 Time Decay 1661 | 20 13 80 478 644 . 326 . 100 Lost Part 280 | . . . 30 10 210 . 30 . Lost Ally 120 | . . . . . . 40 40 40 Purge Threat 300 | . . . 300 . . . . . Squads Dispatched 14 | . . 1 2 7 . 1 . 3 Investigation 8 | . . 1 1 3 . 1 . 2 Extermination . | . . . . . . . . . Reinforcement 4 | . . . 1 3 . . . . Assault . | . . . . . . . . . Garrison 2 | . . . . 1 . . . 1 Intercept . | . . . . . . . . . Searches Triggered . | . . . . . . . . . Construction Impeded . | . . . . . . . . . Haulers Reinforced . | . . . . . . . . . Active Scanning Responses . | . . . . . . . . . Cargo Convoy Interrupts . | . . . . . . . . . Stealth | -11 -10 -10 -9 -8 -8 -8 -8 -7 --------- Run | Yrd Mat Min Mat Mat Gar Mat Gar Fac Distress Signals 5 | . . . 1 1 . 3 . . Communications Jammed . | . . . . . . . . . Distress Signals . | . . . . . . . . . Times Spotted 152 | . 3 4 35 31 23 18 32 6 Peak Tracking Total 9 | . 3 2 7 5 9 5 9 5 Tactical Retreats 6 | . . . 3 . 2 . 1 . Traps | -11 -10 -10 -9 -8 -8 -8 -8 -7 ------- Run | Yrd Mat Min Mat Mat Gar Mat Gar Fac Traps Triggered 12 | . 4 . . . 6 . 2 . Indirectly . | . . . . . . . . . Trap Hack Attempts . | . . . . . . . . . Triggered . | . . . . . . . . . Disarmed . | . . . . . . . . . Reprogrammed . | . . . . . . . . . Reused . | . . . . . . . . . Traps Extracted . | . . . . . . . . . Installed . | . . . . . . . . . Triggered . | . . . . . . . . . Machines | -11 -10 -10 -9 -8 -8 -8 -8 -7 ---------- Run | Yrd Mat Min Mat Mat Gar Mat Gar Fac Machines Disabled 19 | . . . 1 1 5 . 8 4 Max in Single Turn 2 | . . . 1 1 1 . 2 . Garrison Relay 7 | . . . . . 3 . 4 . Phase Generator 1 | . . . . . . . 1 . Machines Repaired . | . . . . . . . . . Machines Dismantled . | . . . . . . . . . Machines Sabotaged . | . . . . . . . . . Overloaded Fab Kills . | . . . . . . . . . Hacking | -11 -10 -10 -9 -8 -8 -8 -8 -7 --------- Run | Yrd Mat Min Mat Mat Gar Mat Gar Fac Machines Accessed 32 | . 2 1 8 11 1 5 2 2 Terminals 23 | . 2 1 6 8 1 3 2 . Fabricators 1 | . . . . . . . . 1 Repair Stations 2 | . . . 1 1 . . . . Recycling Units 2 | . . . 1 . . 1 . . Scanalyzers 1 | . . . . 1 . . . . Garrison Access 3 | . . . . 1 . 1 . 1 Total Hacks 85 | . 4 2 26 32 2 13 2 4 Successful 48 | . 2 . 15 20 1 8 2 . Failed 37 | . 2 2 11 12 1 5 . 4 Catastrophic 7 | . 1 . 1 2 . 1 . 2 Database Lockouts . | . . . . . . . . . Manual 42 | . 3 . 14 20 . 5 . . Terminals 63 | . 4 2 18 24 2 11 2 . Fabricators 2 | . . . . . . . . 2 Repair Stations 9 | . . . 5 4 . . . . Recycling Units 4 | . . . 3 . . 1 . . Scanalyzers 3 | . . . . 3 . . . . Garrison Access 4 | . . . . 1 . 1 . 2 Terminal Hacks 23 | . 2 . 4 10 1 4 2 . Part Schematic 1 | . . . . 1 . . . . Robot Analysis 3 | . . . . . . 3 . . Branch Access Points 1 | . . . . 1 . . . . Emergency Access Points 2 | . . . . . 1 . 1 . Terminal Index 1 | . . . . 1 . . . . Unreport Threat 2 | . . . 2 . . . . . Hauler Manifests 2 | . . . 1 1 . . . . Registered Components 4 | . 1 . . 2 . 1 . . Zone Layout 6 | . 1 . 1 4 . . . . Patrol Navigation 1 | . . . . . . . 1 . Fabricator Hacks . | . . . . . . . . . Repair Station Hacks 8 | . . . 5 3 . . . . Scan Component 4 | . . . 2 2 . . . . Repair 3 | . . . 2 1 . . . . Refit 1 | . . . 1 . . . . . Recycling Unit Hacks 1 | . . . . . . 1 . . Report Inventory 1 | . . . . . . 1 . . Scanalyzer 3 | . . . . 3 . . . . Insert Component 1 | . . . . 1 . . . . Analyze 2 | . . . . 2 . . . . Garrison Access Hacks 2 | . . . . 1 . 1 . . Unlock Access 2 | . . . . 1 . 1 . . Unauthorized Hacks 11 | . . . 6 3 . 2 . . Terminals 11 | . . . 6 3 . 2 . . Track 2 | . . . 2 . . . . . Botnet 8 | . . . 3 3 . 2 . . Disrupt 1 | . . . 1 . . . . . Fabricators . | . . . . . . . . . Repair Stations . | . . . . . . . . . Recycling Units . | . . . . . . . . . Scanalyzers . | . . . . . . . . . Garrison Access . | . . . . . . . . . Data Cores Recovered 1 | . . . 1 . . . . . Used . | . . . . . . . . . Hacking Detections 28 | . 2 1 8 10 1 3 1 2 Full Trace Events 8 | . . 1 2 2 . 1 . 2 Feedback Events 1 | . . 1 . . . . . . Corruption 1 | . . 1 . . . . . . Feedback Blocked . | . . . . . . . . . Robot Schematics Acquired . | . . . . . . . . . Robots Built . | . . . . . . . . . Authchips . | . . . . . . . . . Time . | . . . . . . . . . Total Robot Build Rating . | . . . . . . . . . Part Schematics Acquired 2 | . . . . 2 . . . . Parts Built . | . . . . . . . . . Authchips . | . . . . . . . . . Time . | . . . . . . . . . Total Part Build Rating . | . . . . . . . . . Parts Repaired 3 | . . . 2 1 . . . . Time 117 | . . . 85 32 . . . . Parts Recycled . | . . . . . . . . . Recycled Matter . | . . . . . . . . . Retrieved Matter . | . . . . . . . . . Retrieved Components . | . . . . . . . . . Parts Scanalyzed 1 | . . . . 1 . . . . Part Schematics Acquired 1 | . . . . 1 . . . . Parts Damaged . | . . . . . . . . . Bothacking | -11 -10 -10 -9 -8 -8 -8 -8 -7 ------------ Run | Yrd Mat Min Mat Mat Gar Mat Gar Fac Used RIF Installer . | . . . . . . . . . Robots Hacked . | . . . . . . . . . Non-combat . | . . . . . . . . . Combat . | . . . . . . . . . Robot Hacks Applied . | . . . . . . . . . Relay Couplers Released 28 | . . . . . 13 . 15 . Machine Destruction 28 | . . . . . 13 . 15 . Fabnet Peak Effective % . | . . . . . . . . . Robots Rewired 12 | . . . . . 2 . 10 . Allies Hacked . | . . . . . . . . . Hacks Repelled . | . . . . . . . . . Allies | -11 -10 -10 -9 -8 -8 -8 -8 -7 -------- Run | Yrd Mat Min Mat Mat Gar Mat Gar Fac Total Allies 12 | . . . . . 2 . 10 . Largest Group 6 | . . . . . 1 2 6 2 Highest-Rated Group 84 | . . . . . 16 32 84 42 Highest-Rated Ally 21 | . . . . . 16 16 21 21 Initial Warlord ECA Mod 29 | . . . . . . 7 7 15 Total Orders . | . . . . . . . . . Ally Attacks 52 | . . . . . . 15 30 7 Total Damage 821 | . . . . . . 139 495 187 Kills 5 | . . . . . . 1 3 1 Allies Corrupted . | . . . . . . . . . Allies Melted . | . . . . . . . . . Intel | -11 -10 -10 -9 -8 -8 -8 -8 -7 ------- Run | Yrd Mat Min Mat Mat Gar Mat Gar Fac Active Infowar (turns) 1061 | 55 167 169 360 . . 114 . 196 Terrain 2 | 2 . . . . . . . . Seismic 1059 | 53 167 169 360 . . 114 . 196 Robot Analysis Total 3 | . . . . . . 3 . . Derelict Logs Recovered . | . . . . . . . . . Drone Launches . | . . . . . . . . . Drone Recoveries . | . . . . . . . . . Exploration | -11 -10 -10 -9 -8 -8 -8 -8 -7 ------------- Run | Yrd Mat Min Mat Mat Gar Mat Gar Fac Turns Passed 8614 | 198 167 169 1339 2876 1332 732 1588 213 Spaces Moved 4341 | 116 129 107 615 1579 585 353 734 123 Core 1 | 1 . . . . . . . . Treads 3221 | . . . 36 1390 585 353 734 123 Legs 1119 | 115 129 107 579 189 . . . . Wheels . | . . . . . . . . . Hover . | . . . . . . . . . Flight . | . . . . . . . . . Fastest Speed 50 | 50 120 120 120 115 160 161 161 161 Average Speed 153 | 119 120 120 143 154 163 162 162 161 Slowest Speed 490 | 120 120 120 190 240 490 163 242 161 Overloaded Moves . | . . . . . . . . . Propulsion Burnouts . | . . . . . . . . . Robots Hopped . | . . . . . . . . . Potential Cave-ins . | . . . . . . . . . Cave-ins Triggered . | . . . . . . . . . Exploration Rate (%) 39 | 7 24 31 51 89 55 29 62 5 Regions Visited 8 Branch Regions 1 Pre-discovered Areas . | . . . . . . . . . Known Exits Taken 2 | . . . . 1 . 1 . . Unknown Exits Taken 4 | 1 1 1 1 . . . . . Scrap Searched . | . . . . . . . . . Spaces Dug 15 | . . . . 7 . . 8 . Terrain Destroyed 270 | . . 11 11 35 3 27 149 34 Melee 7 | . . . . 7 . . . . Projectile 1 | . . . . . . . 1 . AOE 262 | . . 11 11 28 3 27 148 34 Terrain Rammed . | . . . . . . . . . Walls Destroyed . | . . . . . . . . . Machines Disabled . | . . . . . . . . . Actions | -11 -10 -10 -9 -8 -8 -8 -8 -7 --------- Run | Yrd Mat Min Mat Mat Gar Mat Gar Fac Total 5565 | 145 140 127 899 1878 773 458 1013 132 Wait 228 | . . 4 106 73 8 33 4 . Move 4334 | 115 128 107 614 1578 583 353 733 123 Hop . | . . . . . . . . . Pick Up 102 | 6 6 . 26 40 12 8 2 2 Fast Attach 47 | 8 . . 10 13 8 6 2 . Attach 27 | . . . 4 3 15 1 2 2 Detach 6 | 1 . . . 2 1 1 1 . Swap 68 | . 1 1 12 21 19 6 6 2 Drop 103 | . 4 1 24 53 4 14 3 . Fire 378 | 13 1 10 102 80 72 30 67 3 Melee 41 | . . . . 8 27 6 . . Ram . | . . . . . . . . . Kick 7 | 2 . 4 1 . . . . . Crush 13 | . . . . 7 . . 6 . Escape Stasis . | . . . . . . . . . Rewire 211 | . . . . . 24 . 187 . Trap . | . . . . . . . . . Miscellaneous . | . . . . . . . . . Route ------- -11/Scrapyard -10/Materials -10/Mines -9/Materials -8/Materials (discovered 4 exits: *Fac x3 / Gar) -8/Garrison (discovered 2 exits: *Mat x2) -8/Materials (discovered 2 exits: *Fac / Gar) -8/Garrison -7/Factory History --------- Turn | Location | Event 12 | -11/Scrapyard | Discovered new exit (range 15) 199 | -11/Scrapyard | Entered Materials 321 | -10/Materials | Build established: Mutant 348 | -10/Materials | Discovered new exit (range 8) 366 | -10/Materials | Entered Mines 402 | -10/Mines | Met a Derelict bent on vengeance 516 | -10/Mines | Discovered new exit (range 11) 535 | -10/Mines | Entered Materials 535 | -9/Materials | Evolved 2 slots: Propulsion x2 1242 | -9/Materials | Repaired Corrupted Hacking Suite 1275 | -9/Materials | Repaired Autogun 1656 | -9/Materials | Destroyed 7 combat bots 1665 | -9/Materials | Build established: Scavenger-Mutant 1830 | -9/Materials | Discovered new exit (range 12) 1874 | -9/Materials | Entered another Materials area 1874 | -8/Materials | Evolved 2 slots: Propulsion x2 1919 | -8/Materials | Repaired Autogun 2330 | -8/Materials | Discovered new exit (range 13) 3053 | -8/Materials | Discovered new exit (range 8) 3381 | -8/Materials | Discovered new exit (range 15) 4715 | -8/Materials | Garrison activated, responded to threat 4743 | -8/Materials | Identified exit to Garrison 4750 | -8/Materials | Entered Garrison 4802 | -8/Garrison | Triggered checkpoint 4826 | -8/Garrison | Garrison Relay disabled 5036 | -8/Garrison | Lost 4 parts (2n1u1w) 5054 | -8/Garrison | Triggered checkpoint 5182 | -8/Garrison | Spotted B-75 Beast 5182 | -8/Garrison | Spotted B-75 Beast 5245 | -8/Garrison | Discovered new exit (range 15) 5290 | -8/Garrison | Triggered checkpoint 5377 | -8/Garrison | Garrison Relay disabled 5427 | -8/Garrison | Garrison Relay disabled 5585 | -8/Garrison | Attempted to access garrison exit controls, blocked by remote lockdown 5727 | -8/Garrison | Lost 4 parts (3n1w) 5730 | -8/Garrison | Destroyed B-75 Beast 5775 | -8/Garrison | Core integrity fell below 50% 5791 | -8/Garrison | Destroyed B-75 Beast 5809 | -8/Garrison | Lost 11 parts (1p5n2u3w) 5887 | -8/Garrison | Found Launcher Loader 5906 | -8/Garrison | Found Launcher Loader 5940 | -8/Garrison | Triggered checkpoint 5979 | -8/Garrison | Build established: Mutant 6002 | -8/Garrison | Triggered checkpoint 6041 | -8/Garrison | Discovered new exit (range 5) 6082 | -8/Garrison | Entered Materials 6082 | -8/Materials | Accompanied by 2 allies 6591 | -8/Materials | Discovered new exit (range 4) 6814 | -8/Materials | Identified exit to Garrison 6814 | -8/Materials | Entered Garrison 6911 | -8/Garrison | Triggered checkpoint 6943 | -8/Garrison | Destroyed 8 combat bots 7146 | -8/Garrison | Triggered checkpoint 7168 | -8/Garrison | Triggered checkpoint 7190 | -8/Garrison | Lost 6 allies 7200 | -8/Garrison | Triggered checkpoint 7312 | -8/Garrison | Garrison Relay disabled 7400 | -8/Garrison | Triggered checkpoint 7528 | -8/Garrison | Garrison Relay disabled 7599 | -8/Garrison | Discovered new exit (range 11) 7604 | -8/Garrison | Triggered checkpoint 7606 | -8/Garrison | Triggered checkpoint 7617 | -8/Garrison | Core integrity fell below 20% 7663 | -8/Garrison | Destroyed 10 combat bots 7684 | -8/Garrison | Garrison Relay disabled 7850 | -8/Garrison | Triggered checkpoint 7941 | -8/Garrison | Garrison Relay disabled 7977 | -8/Garrison | Build established: Scavenger-Mutant 8237 | -8/Garrison | Phase Generator disabled 8402 | -8/Garrison | Entered Factory 8402 | -7/Factory | Accompanied by 2 allies 8402 | -7/Factory | Evolved 2 slots: Utility x2 8599 | -7/Factory | Garrison activated, responded to threat 8615 | -7/Factory | Self-destructed Last Messages --------------- 08450_ R-06 Scavenger collects Imp. Hover Unit. 08498_ Acquired Hrd. Light Armor Plating. 08524_ Acquired Imp. Signal Interpreter. 08570_ Connecting with Garrison Access... 08570_ Current location identified: Factory 08570_ ALERT: Suspicious activity at Garrison Access F001. Dispatching Investigation squad. 08588_ Slug penetrates Wall. 08593_ Slug penetrates G-47 Trooper. 08596_ G-47 Trooper destroyed. 08597_ Commando 3c destroyed. 08599_ ALERT: Activating Garrison Access F001. 08600_ Y-54 Guardian emerges from the garrison. 08600_ G-47 Trooper destroyed. 08600_ G-50 Soldier destroyed. 08600_ G-47 Trooper destroyed. 08604_ Commando 3b destroyed. 08607_ Connecting with Fabricator... 08607_ ALERT: Suspicious activity at Fabricator F002. Dispatching Investigation squad. Map ----- +----------------------------------------------------+ | | | | | | | | | | | | | | | | | | | ?????????????????????????????? | | ?????????????????????????????? | | ?????????????????????????????? | | ????????#????????????????????? | | ???????? ####?###########???? | | ???????# # #???? | | ???????# # #???? | | ??????? #???? | | ??????# =* #???? | | ??????# *%%! """ #???? | | ??????# !=% """ #???? | | ??????# [= F" #???? | | ???????# "" #???? | | ???????????# # #???? | | ???????????##### #???? | | ???????????# ####+###?? | | ???????????# ## @ [#? | | ???????????# """ ## #? | | ???????????# """ ## """ #? | | ???????????# """ ## """ #? | | ???????????# ## """ #? | | ???????????# ## #? | | ???????????#[= " #########? | | ???????????#%%""" #????????? | | ???????????#*= G #????????? | | ???????????#[%""" #????????? | | ???????????# " #????????? | | ???????????# #????????? | | ?????####### #????????? | | ???? #????????? | | ?# #????????? | | ?# #????????? | | ?# #????????? | | ?? """ """ #????????? | | ?# """ """ #????????? | | ?? """ """ #????????? | | ?? ? !! #????????? | | ?????? """ """ !! #????????? | | ? ? """ """ #????????? | | ? """ """ #????????? | | #????????? | +----------------------------------------------------+ Best States ------------- Heat Dissipation 53 Energy Generation 14 Energy Capacity 265 Matter Stores 300 Matter Capacity 300 Sight Range 16 Terrain Scan Density 10 Armor Coverage 225 Resistance: KI 20 Evasion (%) 55 Targeting Accuracy 8 Melee Accuracy 8 Recoil Reduction 6 Authchip Count 1 Item Schematics ----------------- Hcp. Matter Pod | -8/Materials | Hacked Arm. Treads | -8/Materials | Scanalyzed Robot Schematics ------------------ None Fabricated ------------ Nothing Repaired ---------- Hacking Suite | 90% | -9/Materials | Corrupted Autogun | 27% | -9/Materials Autogun | 20% | -8/Materials Alien Tech Used ----------------- None Achievements -------------- None Challenges ------------ None Game ------ Seed MatterThrowingNanosword Manual? 0 Play Time 01:00:10 Cumulative 224.2 hours Start 2025.08.12 @ 13:32:28 End 2025.08.12 @ 15:58:55 Sessions 3 Manual Loads 0 Difficulty Rogue Special Mode None Game No. 234 Rogue 234 Adventurer 0 Explorer 0 Win Type - Total 3 Types 3/0/0/0/0/0/0/0/0/0 Lore% 73 Gallery% 70 Achievement% 66 Wizard Run 0 Options --------- Layout 0 ASCII 0 Keyboard 1 Movement Vi Keybinds 0 Fullscreen 1 Font 18/X11 Map View 76x50 Zoom Use 0% Tactical HUD 1 Map Filters NONE Filters NONE Steam 1 RUN: c375bcc8-0bc9-47cd-8d5b-34b891b7d6bb